Cogmind - Beta 9.6 @@@ ROGUE MODE // 2020.06.30 @ 12:11:59 Player: Granite Result: Destroyed by S-10 Pest with Light Assault Rifle Performance ------------- Evolutions (0) 0 Regions Visited (1) 200 Robots Destroyed (9) 45 Value Destroyed (255) 255 Prototype IDs (0) 0 Alien Tech Used (0) 0 Bonus (0) 0 TOTAL SCORE: 500 Bonus ------- None Cogmind --------- Core Integrity 0/250 Matter 290/300 Energy 100/100 System Corruption 0% Temperature Cool (0) Movement Core (550) Ox10 Location -10/Materials Parts ------- > --- POWER (1) -------- (None) > --- PROPULSION (2) --- (None) > --- UTILITY (2) ------ High-capacity Storage Unit > --- WEAPON (2) ------- (None) > --- INVENTORY (12) --- (None) Peak State ------------ > --- POWER ------------ Ion Engine > --- PROPULSION ------- Aluminum Leg Aluminum Leg > --- UTILITY ---------- Heat Sink Structural Scanner > --- WEAPON ----------- Medium Laser Medium Laser > --- INVENTORY -------- Aluminum Leg Grenade Launcher [Rating: 7] Favorites ----------- Power Ion Engine Engine Ion Engine Propulsion Aluminum Leg Leg Aluminum Leg Utility Heat Sink Device Heat Sink Storage High-capacity Storage Unit Weapon Medium Laser Energy Gun Medium Laser Launcher Grenade Launcher Special Weapon Mining Laser Build | -11 -10 ------- Run | Scr Mat Slots Evolved . | . . Power . | . . Propulsion . | . . Utility . | . . Weapon . | . . Parts Attached 17 | 5 12 Power 1 | 1 . Engine 1 | 1 . Core . | . . Reactor . | . . Propulsion 4 | 2 2 Treads . | . . Leg 4 | 2 2 Wheel . | . . Hover . | . . Flight . | . . Utility 4 | . 4 Device 3 | . 3 Storage 1 | . 1 Processor . | . . Hackware . | . . Protection . | . . Artifact . | . . Weapon 8 | 2 6 Energy Gun 4 | 2 2 Energy Cannon . | . . Ballistic Gun . | . . Ballistic Cannon . | . . Launcher 3 | . 3 Special Weapon 1 | . 1 Impact Weapon . | . . Slashing Weapon . | . . Piercing Weapon . | . . Special Melee Weapon . | . . Unidentified Prototypes . | . . Parts Lost 11 | . 11 Power 1 | . 1 Propulsion 4 | . 4 Utility 2 | . 2 Weapon 4 | . 4 Highest Loss Streak 7 | . 7 Average Slot Usage (%) 86 | . 86 Engine 13 | . 13 Leg 27 | . 27 Device 14 | . 14 Storage 7 | . 7 Energy Gun 21 | . 21 Launcher 1 | . 1 Naked Turns . | . . Heaviest Build 42 | 9 42 Greatest Support 20 | 20 20 Greatest Overweight (x) 3 | . 3 Average Overweight (x) . | . . Largest Inventory Capacity 12 | 4 12 Average Capacity 7 | 4 8 Most Carried 4 | 2 4 Average Carried 2 | . 2 Final Capacity 12 | 4 12 Final Carried . | . . Class Distribution -------------------- 100% | Mutant Dominant Class ---------------- Mutant | -10/Materials Resources | -11 -10 ----------- Run | Scr Mat Matter Collected 370 | 199 171 Remotely . | . . Salvage Created 269 | . 269 Parts 17 | . 17 Haulers Intercepted . | . . Recyclers Shooed 1 | . 1 Parts Field Recycled . | . . Retrieved Matter . | . . Parts Self-Destructed . | . . Prevented . | . . Kills | -11 -10 ------- Run | Scr Mat Combat Hostiles Destroyed 6 | . 6 Guns 4 | . 4 AOE 2 | . 2 Classes Destroyed 4 | . 4 Recycler 1 | . 1 Operator 1 | . 1 Watcher 1 | . 1 Grunt 6 | . 6 Best Kill Streak 4 | . 4 Combat Bots Only 2 | . 2 Max Kills in Single Turn 2 | . 2 Gunslinging . | . . Exploded 1 | . 1 Melee . | . . Uniques/NPCs Destroyed . | . . Combat | -11 -10 -------- Run | Scr Mat Damage Taken 943 | . 943 Core 256 | . 256 Absorbed by Shields . | . . Core Remaining (%) 100 | 100 . Volleys Fired 24 | . 24 Largest 2 | . 2 Hottest 100 | . 100 Shots Fired 45 | . 45 Gun 38 | . 38 Cannon . | . . Launcher 7 | . 7 Special . | . . Kinetic . | . . Thermal 38 | . 38 Explosive 7 | . 7 Electromagnetic . | . . Robot Hit Streak 8 | . 8 Robot Miss Streak 2 | . 2 Penetration Max . | . . Secondary Targets . | . . Shots Hit Robots 21 | . 21 Core Hits 16 | . 16 Critical Hits . | . . Critical Kills . | . . Critical Parts Destroyed . | . . Melee Attacks . | . . Impact . | . . Slashing . | . . Piercing . | . . Sneak Attacks . | . . Combat Hostiles . | . . Follow-up Attacks . | . . Damage Inflicted 526 | . 526 Guns 177 | . 177 Cannons . | . . Explosions 346 | . 346 Melee . | . . Ramming 3 | . 3 Kinetic . | . . Thermal 177 | . 177 Explosive 346 | . 346 Electromagnetic . | . . Impact . | . . Slashing . | . . Piercing . | . . Highest Corruption . | . . Average Corruption . | . . Corruption Purged . | . . Overload Shots . | . . Overflow Damage . | . . Projectiles . | . . Explosions . | . . Melee . | . . Knockbacks . | . . Impact . | . . Kinetic . | . . Secondary . | . . Self-Inflicted Damage 26 | . 26 Shots 3 | . 3 Rammed 1 | . 1 Targets Rammed 1 | . 1 Kicked . | . . Crushed . | . . Highest Temperature 273 | . 273 Average Temperature 69 | . 69 Received Heat Transfer 288 | . 288 Siege Activations . | . . Robots Corrupted . | . . Combat Hostiles . | . . Parts Fried . | . . Impact Corruptions . | . . Robots Melted . | . . Combat Hostiles . | . . Parts Melted . | . . Heat Transferred 518 | . 518 Parts Sabotaged . | . . Parts Stolen . | . . Parts Stripped . | . . Power Chain Reactions . | . . Missiles Intercepted . | . . Alert | -11 -10 ------- Run | Scr Mat Peak Influence 142 | . 142 Average Influence 60 | . 68 Maximum Alert Level . | . . Low Security (%) 100 | 100 100 Level 1 . | . . Level 2 . | . . Level 3 . | . . Level 4 . | . . Level 5 . | . . High Security . | . . Max Security . | . . Squads Dispatched 2 | . 2 Investigation 1 | . 1 Extermination . | . . Reinforcement 1 | . 1 Assault . | . . Garrison . | . . Intercept . | . . Construction Impeded . | . . Haulers Reinforced . | . . Stealth | -11 -10 --------- Run | Scr Mat Distress Signals 1 | . 1 Communications Jammed . | . . Distress Signals . | . . Times Spotted 14 | . 14 Peak Tracking Total 5 | . 5 Tactical Retreats 1 | . 1 Traps | -11 -10 ------- Run | Scr Mat Traps Triggered . | . . Indirectly . | . . Trap Hack Attempts . | . . Triggered . | . . Disarmed . | . . Reprogrammed . | . . Reused . | . . Traps Extracted . | . . Installed . | . . Triggered . | . . Machines | -11 -10 ---------- Run | Scr Mat Machines Disabled . | . . Max in Single Turn . | . . Machines Sabotaged . | . . Garrisons Compromised . | . . Overloaded Fab Kills . | . . Fab Network Shutdowns . | . . Hacking | -11 -10 --------- Run | Scr Mat Machines Accessed 3 | . 3 Terminals 2 | . 2 Fabricators . | . . Repair Stations . | . . Recycling Units 1 | . 1 Scanalyzers . | . . Garrison Access . | . . Total Hacks 7 | . 7 Successful 1 | . 1 Failed 6 | . 6 Catastrophic 1 | . 1 Database Lockouts . | . . Manual 2 | . 2 Terminals 4 | . 4 Fabricators . | . . Repair Stations . | . . Recycling Units 3 | . 3 Scanalyzers . | . . Garrison Access . | . . Terminal Hacks . | . . Fabricator Hacks . | . . Repair Station Hacks . | . . Recycling Unit Hacks 1 | . 1 Retrieve Components 1 | . 1 Scanalyzer . | . . Garrison Access Hacks . | . . Unauthorized Hacks . | . . Terminals . | . . Fabricators . | . . Repair Stations . | . . Recycling Units . | . . Scanalyzers . | . . Garrison Access . | . . Data Cores Recovered . | . . Used . | . . Hacking Detections 3 | . 3 Full Trace Events 2 | . 2 Feedback Events . | . . Feedback Blocked . | . . Robot Schematics Acquired . | . . Robots Built . | . . Matter . | . . Time . | . . Total Robot Build Rating . | . . Part Schematics Acquired . | . . Parts Built . | . . Matter . | . . Time . | . . Total Part Build Rating . | . . Parts Repaired . | . . Time . | . . Parts Recycled . | . . Recycled Matter . | . . Retrieved Matter . | . . Retrieved Components 9 | . 9 Parts Scanalyzed . | . . Part Schematics Acquired . | . . Parts Damaged . | . . Bothacking | -11 -10 ------------ Run | Scr Mat Used RIF Installer . | . . Robots Hacked . | . . Non-combat . | . . Combat . | . . Robot Hacks Applied . | . . Relay Couplers Released . | . . Robots Rewired . | . . Allies Hacked . | . . Hacks Repelled . | . . Allies | -11 -10 -------- Run | Scr Mat Total Allies . | . . Largest Group . | . . Highest-Rated Group . | . . Highest-Rated Ally . | . . Total Orders . | . . Ally Attacks . | . . Total Damage . | . . Kills . | . . Allies Corrupted . | . . Allies Melted . | . . Intel | -11 -10 ------- Run | Scr Mat Robot Analysis Total . | . . Derelict Logs Recovered . | . . Drone Launches . | . . Drone Recoveries . | . . Exploration | -11 -10 ------------- Run | Scr Mat Turns Passed 503 | 60 443 Spaces Moved 282 | 51 231 Core 15 | 15 . Treads . | . . Legs 267 | 36 231 Wheels . | . . Hover . | . . Flight . | . . Fastest Speed 50 | 50 120 Average Speed 137 | 99 146 Slowest Speed 210 | 120 210 Overloaded Moves . | . . Propulsion Burnouts . | . . Robots Hopped . | . . Cave-ins Triggered . | . . Exploration Rate (%) 20 | 3 37 Regions Visited 1 Branch Regions . Pre-discovered Areas . | . . Known Exits Taken . | . . Unknown Exits Taken 1 | 1 . Scrap Searched . | . . Spaces Dug . | . . Terrain Destroyed 26 | . 26 Melee . | . . Projectile . | . . AOE 26 | . 26 Actions | -11 -10 --------- Run | Scr Mat Total 350 | 60 290 Wait 11 | . 11 Move 281 | 50 231 Hop . | . . Pick Up 14 | 5 9 Fast Attach . | . . Attach 13 | 5 8 Detach . | . . Swap 4 | . 4 Drop 2 | . 2 Fire 24 | . 24 Melee . | . . Ram . | . . Kick 1 | . 1 Crush . | . . Escape Stasis . | . . Rewire . | . . Trap . | . . Miscellaneous . | . . Route ------- -11/Scrapyard -10/Materials History --------- Turn | Location | Event 8 | -11/Scrapyard | Discovered new exit (range 15) 61 | -11/Scrapyard | Entered Materials 315 | -10/Materials | Build established: Mutant 462 | -10/Materials | Lost 4 parts (1n3w) 482 | -10/Materials | Core integrity fell below 50% 500 | -10/Materials | Core integrity fell below 20% 504 | -10/Materials | Destroyed by S-10 Pest with Light Assault Rifle Last Messages --------------- 00438_ K-01 Serf collects debris. 00438_ U-05 Engineer lays Concrete. 00440_ K-01 Serf destroyed. 00440_ Acquired 8 matter. 00441_ U-05 Engineer lays Concrete. 00442_ Acquired 66 matter. 00442_ U-05 Engineer lays Concrete. 00465_ Heat Sink destroyed. 00467_ U-05 Engineer lays Concrete. 00468_ R-06 Scavenger collects Hover Unit. 00469_ U-05 Engineer lays Concrete. 00472_ Aluminum Leg destroyed. 00480_ Ion Engine destroyed. 00481_ K-01 Serf collects debris. 00483_ U-05 Engineer lays Concrete. 00484_ Aluminum Leg destroyed. 00489_ Acquired Mining Laser. 00494_ Mining Laser destroyed. 00499_ Sensor Array destroyed. 00504_ Aluminum Leg destroyed. Map ----- +----------------------------------------------------+ | | | | | | | | | | | | | ??????????????????????????????????????? | | ??????????????????????????????????????? | | ??????????????????????????????????????? | | ??????????????????????????????????????? | | ??????????????????????????????????????? | | ??????????????????????????????????????? | | ??????????????????????????????????????? | | ??????????????????????????????????????? | | ??????????????????????????????????????? | | ??????????????????????????????????????? | | ??????????????????????????????????????? | | ??????????????????????????????????????? | | ????????? ????????????????????????????? | | ????????? ##+########?????????????????? | | ????????? # #?????????????????? | | ????????? # """ """ #?????????????????? | | ????????? # """ """ #?????????????????? | | ????????? # """ """ #???????! ??????? | | ????????? # #??????? ??????? | | ????????# #! @ s #??????? #??????? | | ????????# # ss #??????? #??????? | | ????????# # g !#??????? #??????? | | ????????# #####+############ #??????? | | ????????# #### #??????? | | ????????# #??????? | | ????????# #### #??????? | | ????#####/#### ########### #??????? | | ????# # # # #??????? | | ????# # # # ######## | | ????# # # * # ## ! | | ????# # # = # ## * | | ????# ! !! / ! + ## [!* " | | ????# !! # # =* # ##*[[! " | | ????# ! ### # % # ## "Y" " | | ????# #?# # # ## """ | | ????# * #?# ########### ######## | | ????##########?# #??# T + ####### | | ???????????????# #??# # | | ??????????????? #??# """ # | | ???????????????##???# """ # | | ????????????????????# """ # ####### | | ????????????????????# # # # | | ????????????????????########^^ # =# | | ???????????????????????????# +^ ^ # | +----------------------------------------------------+ Best States ------------- Heat Dissipation 35 Energy Generation 10 Energy Capacity 250 Matter Stores 290 Matter Capacity 300 Sight Range 16 Robot Scan Range 10 Terrain Scan Density 10 Evasion (%) 50 Item Schematics ----------------- None Robot Schematics ------------------ None Fabricated ------------ Nothing Alien Tech Used ----------------- None Achievements -------------- None Challenges ------------ None Game ------ Seed NeutrinoExperimentalDriver Manual? 0 Play Time 00:08:39 Cumulative 9.3 hours Start 2020.06.30 @ 12:05:25 End 2020.06.30 @ 12:11:59 Sessions 1 Manual Loads 0 Difficulty Rogue Special Mode None Game No. 14 Rogue 14 Adventurer 0 Explorer 0 Win Type - Total 0 Types 0/0/0/0/0/0/0 Lore% 6 Gallery% 16 Achievement% 15 Wizard Run 0 Options --------- ASCII 0 Keyboard 0 Movement Mouse Keybinds 0 Fullscreen 1 Font 24/Smallcaps Map View 76x50 Tactical HUD 1 Map Filters NONE Filters NONE Steam 1 RUN: 2bc81a63-0d14-43e1-8bfe-f47c6cdcf03c